Cogmind - Beta 16.1 @@@ ROGUE MODE // 2026.02.16 @ 21:03:21 Player: f3-rnm Result: Destroyed by S-43 Plague with Heavy Machine Gun Performance ------------- Evolutions (9) 4500 Regions Visited (19) 3800 Robots Destroyed (204) 1020 Value Destroyed (9811) 9811 Prototype IDs (62) 1240 Alien Tech Used (4) 800 Bonus (5354) 5354 TOTAL SCORE: 26525 Bonus ------- High Alert Combat Kills 396 Follower Combat Kills 2548 Registered with UFD 300 Met Warlord at Base 500 MAIN.C Attacked Warlord 500 Warlord Defense Kills 3234 Scanned by Researcher 1000 Friendly Fire -3124 Cogmind --------- Core Integrity 0/1600 Matter 100/300 Energy 100/100 System Corruption 2% Temperature Cool (0) Movement Core (50) Location -1/Access Parts ------- > --- POWER (2) -------- (None) > --- PROPULSION (9) --- (None) > --- UTILITY (8) ------ Enhanced Optical Array Enhanced Optical Array > --- WEAPON (7) ------- (None) > --- INVENTORY (5) ---- (None) Peak State ------------ > --- POWER ------------ Particle Reactor Quantum Reactor > --- PROPULSION ------- Myomer Leg Advanced Myomer Leg Biometal Leg Biometal Leg Biometal Leg Biometal Leg Experimental Myomer Leg > --- UTILITY ---------- Coolant Network Huge Storage Unit Long-range Sensor Array Experimental Signal Interpreter Advanced Weapon Cycler Medium Regenerative Plating System Mapper > --- WEAPON ----------- Advanced Variable Charge Gun Advanced Variable Charge Gun Railgun Hypervelocity Railgun Heavy Hardcell Cannon Enhanced Hardcell Cannon > --- INVENTORY -------- Fusion Reactor Vortex Chain Reactor Biometal Leg Improved Cooling System Advanced Cooling System Energy Well Advanced Matter Compressor Advanced Matter Compressor SHELL Armor Experimental Thermal Shield Experimental EM Shield Advanced Force Field Vortex Shotgun Vortex Driver Vortex Driver Gamma Bomb Array Neutron Missile Launcher Molecular Deconstructor Core Stripper Botcube [Rating: 211] Favorites ----------- Power Subdweller Power Source Engine Subdweller Power Source Power Core Light Fission Core Reactor Improved Quantum Reactor Propulsion Compact Wheel Treads Armored Medium Treads Leg Biometal Leg Wheel Compact Wheel Flight Unit Cooled Impulse Thruster Utility Huge Storage Unit Device Improved Weapon Cycler Storage Huge Storage Unit Processor Experimental Signal Interpreter Hackware System Mapper Protection Centrium Medium Armor Plating Artifact Microwarp Drive Weapon Companion Sword Energy Gun Wave Gun Energy Cannon Vortex Driver Ballistic Gun Railgun Ballistic Cannon Battle Cannon Launcher Neutron Missile Launcher Special Weapon Improved Remote Datajack Impact Weapon Makeshift Hammer Slashing Weapon Companion Sword Piercing Weapon Lance Special Melee Weapon 1B-0RG's Assimilator Build | -11 -10 -10 -10 -7 -7 -5 -5 -5 -4 -4 -4 -4 -3 -3 -3 -2 -2 -2 -1 ------- Run | Yrd Mat Min Sub Rec Scr Fac Was Fac Fac Upp Upp War Pro Res Tes Res Qua Sec Acc Slots Evolved 18 | . . . . . . 10 . . 2 . . . . 2 . 2 . . 2 Power 1 | . . . . . . . . . . . . . . . . 1 . . . Propulsion 7 | . . . . . . 2 . . . . . . . 2 . 1 . . 2 Utility 5 | . . . . . . 4 . . 1 . . . . . . . . . . Weapon 5 | . . . . . . 4 . . 1 . . . . . . . . . . Parts Attached 196 | 6 1 . 12 3 3 22 4 14 11 2 7 16 4 15 23 2 36 5 10 Power 20 | 1 . . 1 . . 3 . 3 . 1 . 1 . . 1 2 6 1 . Engine 3 | 1 . . 1 . . 1 . . . . . . . . . . . . . Core 4 | . . . . . . 2 . 1 . . . . . . . . 1 . . Reactor 13 | . . . . . . . . 2 . 1 . 1 . . 1 2 5 1 . Propulsion 49 | 2 . . 2 1 1 5 . 3 . . . 4 1 7 3 . 12 1 7 Treads 16 | 2 . . 1 . . 2 . . . . . 4 1 . . . 3 . 3 Leg 19 | . . . . . . 2 . 1 . . . . . 7 2 . 4 . 3 Wheel 7 | . . . 1 1 1 1 . 2 . . . . . . 1 . . . . Hover . | . . . . . . . . . . . . . . . . . . . . Flight 7 | . . . . . . . . . . . . . . . . . 5 1 1 Utility 69 | 1 1 . 4 . . 11 3 6 8 1 3 2 2 2 12 . 8 3 2 Device 39 | . . . 2 . . 7 2 4 4 1 3 1 2 2 7 . 3 1 . Storage 9 | 1 . . 2 . . 1 1 . 1 . . . . . 1 . 2 . . Processor 9 | . 1 . . . . 1 . . 2 . . 1 . . 1 . . 1 2 Hackware 3 | . . . . . . . . . 1 . . . . . 2 . . . . Protection 8 | . . . . . . 2 . 2 . . . . . . 1 . 3 . . Artifact 1 | . . . . . . . . . . . . . . . . . . 1 . Weapon 58 | 2 . . 5 2 2 3 1 2 3 . 4 9 1 6 7 . 10 . 1 Energy Gun 18 | . . . . . . . 1 1 . . . 6 1 3 2 . 4 . . Energy Cannon 5 | . . . . . . . . . . . . 1 . . 3 . . . 1 Ballistic Gun 15 | 2 . . 3 2 . . . . 1 . 3 . . 1 1 . 2 . . Ballistic Cannon 5 | . . . 2 . . . . . . . 1 . . . 1 . 1 . . Launcher 5 | . . . . . . 1 . 1 1 . . 1 . . . . 1 . . Special Weapon 4 | . . . . . 1 1 . . . . . 1 . . . . 1 . . Impact Weapon 2 | . . . . . . . . . 1 . . . . . . . 1 . . Slashing Weapon 1 | . . . . . 1 . . . . . . . . . . . . . . Piercing Weapon 2 | . . . . . . . . . . . . . . 2 . . . . . Special Melee Weapon 1 | . . . . . . 1 . . . . . . . . . . . . . Unidentified Prototypes 49 | . . . . . 1 3 2 7 3 . . 3 1 3 15 . 8 3 . Parts Lost 72 | . . . 6 2 . 2 . 1 3 . 6 5 1 1 3 2 26 7 7 Power 8 | . . . 1 . . . . . 1 . . 1 . . . . 4 1 . Propulsion 24 | . . . 3 . . 2 . . . . . . . . 2 1 7 3 6 Utility 11 | . . . . . . . . 1 1 . 2 2 . . . . 3 2 . Weapon 29 | . . . 2 2 . . . . 1 . 4 2 1 1 1 1 12 1 1 Highest Loss Streak 21 | . . . 2 2 . 1 . 1 1 . 6 2 1 1 2 2 21 5 7 To Critical Strikes 1 | . . . . . . . . . . . . . . . . . 1 . . Average Backups 17 | . 2 5 10 25 19 18 19 20 22 22 19 18 22 20 20 18 15 2 2 Power 1 | . . . . 2 1 1 2 2 2 1 1 1 1 1 2 2 1 . . Propulsion 1 | . 1 1 1 1 1 3 2 2 2 3 3 2 7 4 1 . . . 1 Utility 8 | . 1 1 3 10 10 7 8 10 12 12 10 8 7 7 8 9 8 1 . Weapon 5 | . . 1 4 9 5 3 3 3 3 4 4 5 6 7 7 7 5 1 1 Tool/Special . | . . . . . . . . . . . . . . . . . . . . Unused Backups 73 | . . . 4 1 27 6 1 16 2 1 2 2 3 1 4 . 2 1 . Power 10 | . . . . . 4 1 . 3 . . . 1 . . . . 1 . . Propulsion 14 | . . . 2 . 3 4 . 3 . . . . 2 . . . . . . Utility 37 | . . . . 1 12 1 1 8 2 1 2 1 1 1 4 . 1 1 . Weapon 10 | . . . 2 . 7 . . 1 . . . . . . . . . . . Tool/Special 2 | . . . . . 1 . . 1 . . . . . . . . . . . Average Slot Usage (%) 72 | . 95 100 93 84 54 62 61 57 59 74 77 87 83 87 90 84 79 36 22 Engine 6 | . 14 14 13 14 14 2 . . . . . . . . . . . . . Reactor 2 | . . . . . . . . 1 4 4 5 4 5 4 4 8 6 2 . Treads 6 | . 28 28 21 . . 1 5 2 . . . 13 15 2 . . 2 1 7 Leg 3 | . . . . . . 1 . . . . . . . 21 26 24 19 . 6 Wheel 9 | . . . 5 27 23 9 5 7 10 10 10 1 . . . . . . . Device 9 | . . . 8 . . 14 17 12 10 14 15 15 15 17 14 12 12 10 . Storage 8 | . 14 14 14 14 14 5 7 7 5 5 5 5 5 4 4 4 4 3 . Processor 3 | . 9 14 . . . 4 5 5 5 5 5 5 5 4 4 4 3 . 6 Protection 2 | . . . . . . 5 . 1 4 5 6 8 9 4 3 4 3 . . Energy Gun 3 | . . . . . . . 1 . . 12 3 9 5 8 16 11 9 . . Ballistic Gun 7 | . 28 28 22 23 . . . . 2 9 16 11 . 1 4 4 5 . . Ballistic Cannon 1 | . . . 5 4 . . . . . . 1 . . . 1 1 4 . . Slashing Weapon 2 | . . . . . 1 4 . 3 4 4 4 4 5 4 4 1 . . . Special Melee Weapon 1 | . . . . . . 4 5 5 4 . . . . . . . . . . Peak Build Rating 211 | 6 7 7 24 25 25 130 134 146 163 129 130 141 143 170 192 197 211 124 81 Average Rating 85 | 4 6 7 16 24 18 117 130 136 152 118 115 120 125 153 174 187 176 79 57 On Entrance 86 | . 6 7 7 22 25 25 130 134 146 83 129 109 126 125 170 182 190 100 11 Avg Prop Armor Cover (%) 15 | . . . 10 . 6 10 10 13 . . 3 9 . . 1 . 14 10 46 Naked Turns 5 | . . . . . . . . . . . . . . . . . 5 . . Heaviest Build 287 | 10 10 10 211 213 209 287 161 175 179 149 149 160 146 145 169 193 188 39 13 Greatest Support 210 | 40 40 40 40 36 36 70 70 48 40 40 40 81 124 145 153 153 195 40 210 Greatest Overweight (x) 13 | . . . 13 13 12 10 5 8 4 3 6 7 1 1 1 1 12 1 . Average Overweight (x) 3 | . . . 3 5 7 5 3 4 3 2 3 2 1 . . 1 . . . Largest Inventory Capacity 35 | 8 8 8 35 35 35 35 25 25 25 25 25 25 25 25 25 25 25 5 5 Average Capacity 26 | 7 8 8 20 35 35 29 25 25 25 25 25 25 25 25 25 25 20 5 5 Most Carried 35 | 2 3 8 31 35 35 29 25 25 25 25 25 25 25 25 25 25 25 5 5 Average Carried 21 | . 2 5 13 32 25 23 24 24 24 23 20 21 24 24 24 24 20 3 3 Final Capacity 35 | 8 8 8 35 35 35 25 25 25 25 25 25 25 25 25 25 25 5 5 5 Final Carried 35 | 2 3 8 31 35 26 25 25 25 25 25 18 23 24 25 25 24 5 2 . Scrap Suit Usage (%) 5 | . . . . . . . . 13 55 81 . . . . . . . . . Parts Cannibalized 2 | . . . . . . . . 1 . 1 . . . . . . . . . Class Distribution -------------------- 33% | Hauler-Mutant 29% | Mutant 13% | Scavenger-Executioner 7% | Scavenger-Tank 5% | Scavenger-Scrapper 3% | Hacker-Executioner Dominant Class ---------------- Mutant | -10/Materials Mutant | -10/Mines Mutant | -10/Subcaves Hauler-Mutant | -7/Recycling Hauler-Mutant | -7/Scraptown Mutant | -5/Factory Mutant | -5/Waste Mutant | -5/Factory Scavenger-Scrapper | -4/Factory Scavenger-Scrapper | -4/Upper Caves Scavenger-Scrapper | -4/Upper Caves Scavenger-Executioner | -4/Warlord Scavenger-Tank | -3/Proximity Caves Scavenger-Tank | -3/Research Scavenger-Executioner | -3/Testing Scavenger-Executioner | -2/Research Hacker-Executioner | -2/Quarantine Mutant | -2/Section 7 Mutant | -1/Access Resources | -11 -10 -10 -10 -7 -7 -5 -5 -5 -4 -4 -4 -4 -3 -3 -3 -2 -2 -2 -1 ----------- Run | Yrd Mat Min Sub Rec Scr Fac Was Fac Fac Upp Upp War Pro Res Tes Res Qua Sec Acc Matter Collected 10795 | 264 18 4 522 128 10 1037 1104 1508 633 485 878 1233 138 227 744 194 1623 45 . Remotely 990 | . . . . . . . . . 141 . 32 . . . . . 817 . . Salvage Created 9490 | 15 41 . 519 711 . 417 265 947 383 591 642 1302 194 422 1158 194 1641 45 3 Parts 389 | 3 8 . 33 24 . 25 2 39 16 39 17 34 5 8 68 9 54 . 5 Haulers Intercepted 4 | . . . . . . . . 1 . . . . . . 1 . 2 . . Recyclers Shooed 2 | . . . . 1 . . . . . . . . . . 1 . . . . Parts Field Recycled . | . . . . . . . . . . . . . . . . . . . . Retrieved Matter . | . . . . . . . . . . . . . . . . . . . . Parts Self-Destructed 59 | . . . 19 . . . . . . 18 17 . 5 . . . . . . Prevented 2 | . . . . . . . . . . . 2 . . . . . . . . Parts Restored . | . . . . . . . . . . . . . . . . . . . . Kills | -11 -10 -10 -10 -7 -7 -5 -5 -5 -4 -4 -4 -4 -3 -3 -3 -2 -2 -2 -1 ------- Run | Yrd Mat Min Sub Rec Scr Fac Was Fac Fac Upp Upp War Pro Res Tes Res Qua Sec Acc Combat Hostiles Destroyed 134 | . 3 . 13 5 . 13 1 9 4 9 9 22 5 3 21 2 15 . . Melee 18 | . . . . . . 6 . 4 2 5 1 . . . . . . . . Guns 52 | . 3 . 11 4 . . . . 1 1 4 9 1 2 7 2 7 . . Cannons 5 | . . . 2 1 . . . . . . . . . . 1 . 1 . . AOE 50 | . . . . . . 7 1 5 1 3 4 10 4 . 12 . 3 . . Classes Destroyed 29 | 1 1 . 4 1 . 1 1 6 1 2 . 5 1 . 3 1 1 . . Worker 12 | . . . . . . . . 4 2 . . . . . 1 . 3 1 1 Builder 10 | . . . . . . . . . . . . . . . 6 1 1 . 2 Tunneler 4 | 1 . . . . . . . . 1 . . . . . . 2 . . . Hauler 7 | . . . . . . . . 3 1 . . . . . 1 . 2 . . Recycler 13 | . . . . 7 . . . 2 . . . . . 1 1 . 2 . . Minesweeper 1 | . . . . . . . . . . 1 . . . . . . . . . Operator 2 | . . . . . . . . 1 . . . . . . . 1 . . . Turret 2 | . . . 2 . . . . . . . . . . . . . . . . Watcher 4 | . . . . . . . . . 2 . . . . . 2 . . . . Swarmer 24 | . 3 . . . . 8 . . . 8 . . . . 5 . . . . Grunt 43 | . . . 1 3 . 3 . 1 1 . 4 14 4 . 8 . 4 . . Brawler 3 | . . . . . . . . . . . . 2 . . 1 . . . . Protector 2 | . . . . . . . . 2 . . . . . . . . . . . Researcher 6 | . . . . . . . . . . . . . . . 4 . 1 1 . Sentry 11 | . . . 1 2 . . . . 1 1 1 . . 3 . . 2 . . Demolisher 2 | . . . . . . . . . . . . 2 . . . . . . . Specialist 1 | . . . . . . . . . . . . . 1 . . . . . . Hunter 15 | . . . . . . . . 4 . . 4 2 . . 3 . 2 . . Programmer 13 | . . . . . . 2 . 1 2 . . . . . 3 . 5 . . Heavy 1 | . . . . . . . . 1 . . . . . . . . . . . Q-Series 2 | . . . . . . . . . . . . . . . 1 . 1 . . Behemoth 2 | . . . . . . . . . . . . . . . . 2 . . . Compactor 1 | . . . . . . . 1 . . . . . . . . . . . . Striker 1 | . . . . . . . . . . . . 1 . . . . . . . Executioner 1 | . . . . . . . . . . . . 1 . . . . . . . Fortress 1 | . . . . . . . . . . . . . . . . . 1 . . Subdweller 11 | . . . 11 . . . . . . . . . . . . . . . . Thug 2 | . . . . . . . . . . . 1 1 . . . . . . . Savage 1 | . . . . . . . . . . . . 1 . . . . . . . Butcher 1 | . . . . . . . . . . . . 1 . . . . . . . Guerrilla 1 | . . . . . . . . . . 1 . . . . . . . . . Mutant 2 | . . . . . . . . . . 2 . . . . . . . . . Commander 2 | . . . . . . . . . . 1 1 . . . . . . . . Best Kill Streak 13 | 1 3 . 3 6 . 4 1 9 3 4 4 13 4 2 12 2 4 2 3 Combat Bots Only 13 | . 3 . 3 5 . 4 1 5 1 4 4 13 4 2 8 1 3 . . Max Kills in Single Turn 7 | 1 2 . 1 2 . 4 1 4 1 3 3 4 4 1 7 1 2 1 3 Gunslinging 1 | . 1 . . . . . . . . . . 1 . . 1 . . . . Exploded 4 | . . . . . . 4 1 3 1 3 3 4 4 . 4 . 1 . . Melee 1 | . . . . . . 1 . 1 1 1 1 . . . . . . . . Uniques/NPCs Destroyed . | . . . . . . . . . . . . . . . . . . . . Combat | -11 -10 -10 -10 -7 -7 -5 -5 -5 -4 -4 -4 -4 -3 -3 -3 -2 -2 -2 -1 -------- Run | Yrd Mat Min Sub Rec Scr Fac Was Fac Fac Upp Upp War Pro Res Tes Res Qua Sec Acc Hostile Shots Fired 1493 | . 10 . 77 103 . 63 . 72 97 66 144 64 15 12 126 17 197 108 322 Missed 515 | . 2 . 22 36 . 18 . 25 34 17 54 26 4 6 31 6 55 53 126 Hits 978 | . 8 . 55 67 . 45 . 47 63 49 90 38 11 6 95 11 142 55 196 Melee 9 | . . . . . . . . . 1 . . . . . 1 . . 7 . Projectile 969 | . 8 . 55 67 . 45 . 47 62 49 90 38 11 6 94 11 142 48 196 AOE 62 | . . . . . . . . . 1 . . 11 . . . . 50 . . Critical Strikes 30 | . . . 1 . . . . 2 2 . 2 3 . . 2 1 7 4 6 Damage Taken 23655 | . 65 . 882 493 . 895 . 883 1645 635 1651 1595 456 406 1937 495 6086 1715 3816 Core 4200 | . 29 . 89 107 . 89 . 268 147 57 83 184 80 . 107 42 362 950 1606 Absorbed by Shields 505 | . . . . 55 . 34 . . . 232 32 . . . 25 . 127 . . Ignored by Resistances 251 | . . . . . . 202 . . . . . . . . . . 49 . . Regen/Repaired (Parts) 1934 | . . . . . . 291 . 120 275 7 . 400 . . 156 224 461 . . Core Remaining (%) 58 | 100 . . . . 10 . . 64 . . . . 52 . 91 . . 31 . Volleys Fired 353 | 2 6 . 55 22 1 5 3 6 17 10 31 30 5 9 68 9 69 2 3 Largest 7 | 2 2 . 2 2 1 1 1 1 1 6 6 4 3 4 6 6 7 1 1 Hottest 422 | 40 40 . 66 61 . 39 80 39 49 368 368 186 201 276 410 420 422 49 120 Shots Fired 866 | 4 12 . 109 44 1 5 3 6 16 30 141 67 7 30 138 27 221 2 3 Gun 681 | 4 12 . 82 40 . . 1 . 7 28 123 57 3 30 116 21 157 . . Cannon 111 | . . . 27 4 . . . . . . 12 . . . 12 3 50 . 3 Launcher 66 | . . . . . . 3 2 6 9 1 6 8 4 . 10 3 12 2 . Special 8 | . . . . . 1 2 . . . 1 . 2 . . . . 2 . . Kinetic 444 | 4 12 . 109 44 . . . . 7 18 99 18 . 3 45 4 81 . . Thermal 270 | . . . . . . . 1 . . 10 36 15 1 27 57 11 109 . 3 Explosive 54 | . . . . . . 3 2 6 9 1 6 5 4 . 10 3 3 2 . Electromagnetic 12 | . . . . . . . . . . . . 3 . . . . 9 . . Entropic 78 | . . . . . . . . . . . . 24 2 . 26 9 17 . . Robot Hit Streak 19 | 1 5 . 9 17 2 1 3 4 5 8 11 6 3 19 11 14 8 . 6 Robot Miss Streak 8 | 2 1 . 3 2 . 3 . 2 1 3 8 2 1 1 5 4 7 . . Penetration Max 2 | . . . . . . . . . 1 1 1 2 . . 1 . . . . Secondary Targets 8 | . 1 . . 1 . . . . . . 1 3 . . 2 . . . . Max Gunslinging Chain 1 | . 1 . . 1 . . . . . . 1 1 . . 1 . . . . Shots Hit Robots 589 | 2 7 . 54 33 1 18 2 26 25 35 84 39 4 28 84 19 126 1 1 Core Hits 396 | 2 5 . 25 17 . 16 3 38 17 18 39 55 12 10 69 12 53 1 4 Critical Kills 1 | . . . . . . . . . 1 . . . . . . . . . . Critical Parts Destroyed 15 | . . . 1 . . . . . . . 5 3 . 1 1 1 3 . . Critical Strikes 25 | . . . 1 1 . 2 . . 1 . 5 3 . 1 1 2 8 . . Destroy 10 | . . . 1 . . . . . 1 . 5 . . . 1 . 2 . . Blast 3 | . . . . 1 . . . . . . . . . . . . 2 . . Smash 1 | . . . . . . . . . . . . . . 1 . . . . . Detonate 5 | . . . . . . . . . . . . 3 . . . 1 1 . . Sunder 4 | . . . . . . . . . . . . . . . . 1 3 . . Melee Attacks 122 | . . . . . . 20 . 28 17 21 5 . 2 7 15 3 3 1 . Kinetic 4 | . . . . . . . . . . . . . . . . . 3 1 . Impact 5 | . . . . . . . . . . . . . . 5 . . . . . Slashing 113 | . . . . . . 20 . 28 17 21 5 . 2 2 15 3 . . . Piercing . | . . . . . . . . . . . . . . . . . . . . Sneak Attacks 33 | . . . . . . . . 15 4 6 . . . 1 3 3 1 . . Combat Hostiles . | . . . . . . . . . . . . . . . . . . . . Follow-up Attacks . | . . . . . . . . . . . . . . . . . . . . Damage Inflicted 32806 | 15 55 5 1051 756 . 1335 285 3829 1800 1737 2703 4308 1048 864 5914 1333 5158 346 264 Guns 11742 | 15 55 . 847 696 . . 24 . 175 587 1757 1561 23 741 2165 715 2381 . . Cannons 1813 | . . . 204 60 . . . . . . 55 . . . 167 170 1116 . 41 Explosions 14807 | . . . . . . 604 261 2368 956 352 794 2747 1025 . 3273 242 1616 346 223 Melee 4410 | . . . . . . 702 . 1461 669 798 97 . . 123 309 206 45 . . Ramming 34 | . . 5 . . . 29 . . . . . . . . . . . . . Kinetic 5700 | 15 55 . 1051 756 . . . . 175 444 1074 454 . 67 471 77 1061 . . Thermal 6344 | . . . . . . . 24 . 107 143 738 1247 23 674 983 352 1789 . 264 Explosive 11506 | . . . . . . 604 261 2368 849 352 794 923 1025 . 3273 168 543 346 . Electromagnetic 1596 | . . . . . . . . . . . . 793 . . . . 803 . . Impact 123 | . . . . . . . . . . . . . . 123 . . . . . Slashing 4242 | . . . . . . 702 . 1461 669 798 97 . . . 309 206 . . . Piercing . | . . . . . . . . . . . . . . . . . . . . Entropic 3261 | . . . . . . . . . . . . 891 . . 878 530 962 . . Highest Corruption 9 | . . . . . . 1 1 3 4 4 4 4 . 3 9 . 9 9 2 Average Corruption 3 | . . . . . . 1 1 1 2 4 4 4 . 3 5 . 7 9 1 Corruption Purged . | . . . . . . . . . . . . . . . . . . . . Corruption Blocked . | . . . . . . . . . . . . . . . . . . . . Effects 145 | . . . . . . 6 5 16 13 19 13 3 . 2 32 . 31 5 . Message Errors 36 | . . . . . . . 1 6 5 6 . 2 . . 7 . 6 3 . Matter Fused 29 | . . . . . . 2 2 3 2 6 5 . . . 3 . 6 . . Heat Flow Errors 21 | . . . . . . . 1 2 2 1 2 . . . 7 . 5 1 . Energy Discharges 18 | . . . . . . . . 2 1 1 2 1 . . 5 . 5 1 . Parts Rejected 1 | . . . . . . . . . . . . . . . 1 . . . . Parts Fused 2 | . . . . . . . . 1 . . . . . . . . 1 . . Data Loss (minor) 20 | . . . . . . 2 . 2 2 4 2 . . 1 4 . 3 . . Data Loss (major) 6 | . . . . . . 2 1 . . . . . . 1 2 . . . . Misfires 5 | . . . . . . . . . . 1 1 . . . 1 . 2 . . Weapon Failures 7 | . . . . . . . . . 1 . 1 . . . 2 . 3 . . Overload Shots 1 | . . . . . . . . . . . . . . . . . 1 . . Overflow Damage 1298 | . . . . . . . . 347 190 92 10 14 43 123 166 63 172 78 . Projectiles . | . . . . . . . . . . . . . . . . . . . . Explosions 641 | . . . . . . . . 38 132 27 10 14 43 . 91 36 172 78 . Melee 657 | . . . . . . . . 309 58 65 . . . 123 75 27 . . . Knockbacks 7 | . . 1 3 . . . . . . . 1 . . . . . 2 . . Impact 1 | . . 1 . . . . . . . . . . . . . . . . . Kinetic 6 | . . . 3 . . . . . . . 1 . . . . . 2 . . Secondary . | . . . . . . . . . . . . . . . . . . . . Self-Inflicted Damage 831 | . . . . . . . . . 100 73 . 123 259 . 121 61 50 44 . Shots 18 | . . . . . . . . . 2 1 . 2 5 . 2 1 4 1 . Rammed 3 | . . 1 . . . 1 . . . . . . . . . . . . 1 Targets Rammed 3 | . . 1 . . . 1 . . . . . . . . . . . . 1 Kicked . | . . . . . . . . . . . . . . . . . . . . Crushed . | . . . . . . . . . . . . . . . . . . . . Highest Temperature 407 | . . . 3 22 . . 119 209 243 407 294 91 64 . 164 394 393 215 32 Average Temperature 87 | . . . 3 7 . . 52 69 111 166 115 28 32 . 44 133 113 88 17 Received Heat Transfer 2326 | . . . 210 177 . 268 . 159 165 6 108 231 51 27 195 519 120 45 45 Effects 5 | . . . . . . . . . 2 2 1 . . . . . . . . Energy Bleed 1 | . . . . . . . . . . 1 . . . . . . . . . Interference 4 | . . . . . . . . . 2 1 1 . . . . . . . . Siege Activations . | . . . . . . . . . . . . . . . . . . . . Martial Activations . | . . . . . . . . . . . . . . . . . . . . Shielding Activations . | . . . . . . . . . . . . . . . . . . . . Robots Disrupted . | . . . . . . . . . . . . . . . . . . . . Combat Hostiles . | . . . . . . . . . . . . . . . . . . . . Robots Corrupted 5 | . . . . . . . . . . . . 3 . . . . 2 . . Combat Hostiles 5 | . . . . . . . . . . . . 3 . . . . 2 . . Parts Fried 13 | . . . . . . . . . . . . 8 . 3 . . 2 . . Impact Corruptions 1 | . . . . . . . . . . . . . . 1 . . . . . Robots Melted 2 | . . . . . . . . . . . . . . 1 1 . . . . Combat Hostiles 2 | . . . . . . . . . . . . . . 1 1 . . . . Parts Melted 6 | . . . . . . . . . . . . . . 3 2 . 1 . . Heat Transferred 7303 | . . . . . . . 50 . 100 185 962 983 37 888 1184 383 2494 . 37 Parts Sabotaged 2 | . . . . . . . . . . . . . . . 2 . . . . Parts Stolen . | . . . . . . . . . . . . . . . . . . . . Parts Stripped 42 | . . . . . . . . . . . . . . . . . 29 13 . Power Chain Reactions 4 | . . . . . . . . . . . . 2 1 . . . 1 . . Alert | -11 -10 -10 -10 -7 -7 -5 -5 -5 -4 -4 -4 -4 -3 -3 -3 -2 -2 -2 -1 ------- Run | Yrd Mat Min Sub Rec Scr Fac Was Fac Fac Upp Upp War Pro Res Tes Res Qua Sec Acc Maximum Alert Level 3 | . . . . . . 3 1 3 2 . . . . . 3 2 1 1 1 Low Security (%) 59 | 100 100 100 . 100 . 29 89 62 . . . . . 100 61 . 45 73 85 Level 1 18 | . . . . . . 23 10 3 30 . . . . . 24 . 54 26 14 Level 2 19 | . . . . . . 35 . 28 69 . . . . . 12 99 . . . Level 3 2 | . . . . . . 11 . 5 . . . . . . 1 . . . . Level 4 . | . . . . . . . . . . . . . . . . . . . . Level 5 . | . . . . . . . . . . . . . . . . . . . . High Security . | . . . . . . . . . . . . . . . . . . . . Max Security . | . . . . . . . . . . . . . . . . . . . . Peak Influence 801 | 5 70 65 . 125 . 773 269 801 651 . . . . 50 716 549 343 242 316 Initial 400 | . . 11 . 14 . . 269 . 385 . . . . . 27 400 239 101 139 Average 205 | . 21 11 . 28 . 380 57 252 469 . . . . 12 148 472 213 165 144 Influence Increases 7881 | 5 70 74 80 333 . 1363 34 1391 748 205 210 515 110 101 1035 260 719 271 357 Destroy 0b10 Robot/C 3760 | . 60 60 80 220 . 780 . 580 140 180 180 440 100 60 500 40 320 20 . Destroy 0b10 Robot/NC 335 | 5 . . . 65 . 15 . 75 30 5 . . . 5 55 20 40 5 15 Destroy Leader 516 | . 10 10 . . . 120 . 120 46 20 30 . 10 30 56 20 44 . . Allied During Kill 791 | . . 4 . 17 . 328 . 420 22 . . . . . . . . . . Successful Hack 58 | . . . . . . . . 14 7 . . . . . 37 . . . . Disable Machine 660 | . . . . 15 . 60 . 120 165 . . . . . 105 30 120 15 30 Destroy Structure 1251 | . . . . 16 . 60 34 62 308 . . . . 6 252 150 195 111 57 Lose Combat Pursuer 510 | . . . . . . . . . 30 . . 75 . . 30 . . 120 255 Influence Decreases 7695 | 5 40 104 50 292 71 594 803 603 901 592 386 219 478 52 372 546 965 219 403 Entered New Map 2426 | . . 19 . 16 71 . 500 . 403 236 48 72 368 . 22 312 187 79 93 Time Decay 4010 | 5 40 85 50 219 . 444 303 353 368 356 278 95 100 52 320 214 518 70 140 Search Patrol Dispatched 100 | . . . . . . . . . . . . . . . . . . . 100 Lost Part 642 | . . . . 20 . 20 . 10 30 . 60 42 10 . 30 20 260 70 70 Lost Ally 517 | . . . . 37 . 130 . 240 100 . . 10 . . . . . . . Squads Dispatched 42 | . . . . . . 9 . 8 2 . . . . 1 5 2 8 6 1 Investigation 4 | . . . . . . 4 . . . . . . . . . . . . . Extermination 16 | . . . . . . 3 . 2 1 . . . . 1 2 1 4 1 1 Reinforcement 19 | . . . . . . 1 . 5 1 . . . . . 2 1 4 5 . Assault 3 | . . . . . . 1 . 1 . . . . . . 1 . . . . Garrison . | . . . . . . . . . . . . . . . . . . . . Intercept . | . . . . . . . . . . . . . . . . . . . . Searches Triggered 1 | . . . . . . . . . . . . . . . . . . . 1 Construction Impeded 2 | . . . . . . . . . . . . . . . . . 1 1 . Haulers Reinforced 4 | . . . . . . 1 . 1 . . . . . . 1 . 1 . . Active Scanning Responses . | . . . . . . . . . . . . . . . . . . . . Cargo Convoy Interrupts 1 | . . . . . . . . 1 . . . . . . . . . . . Stealth | -11 -10 -10 -10 -7 -7 -5 -5 -5 -4 -4 -4 -4 -3 -3 -3 -2 -2 -2 -1 --------- Run | Yrd Mat Min Sub Rec Scr Fac Was Fac Fac Upp Upp War Pro Res Tes Res Qua Sec Acc Distress Signals 12 | . . . . 1 . . . . 3 . . . . . 2 . 3 2 1 Communications Jammed 63 | . . . . . . 1 . 62 . . . . . . . . . . . Distress Signals 56 | . . . . . . 1 . 55 . . . . . . . . . . . Times Spotted 355 | . 4 2 17 11 . 39 1 34 19 9 11 81 6 3 31 5 23 33 26 Peak Tracking Total 26 | . 3 . 2 6 . 7 1 11 4 4 4 19 5 2 9 2 4 26 18 Tactical Retreats 13 | . . . . . . . . . 2 . . 3 . . 1 . . 2 5 Traps | -11 -10 -10 -10 -7 -7 -5 -5 -5 -4 -4 -4 -4 -3 -3 -3 -2 -2 -2 -1 ------- Run | Yrd Mat Min Sub Rec Scr Fac Was Fac Fac Upp Upp War Pro Res Tes Res Qua Sec Acc Traps Triggered 15 | . . . 1 . . 2 . 3 2 . . . . 2 . 1 1 1 2 Indirectly . | . . . . . . . . . . . . . . . . . . . . Trap Hack Attempts . | . . . . . . . . . . . . . . . . . . . . Triggered . | . . . . . . . . . . . . . . . . . . . . Disarmed . | . . . . . . . . . . . . . . . . . . . . Reprogrammed . | . . . . . . . . . . . . . . . . . . . . Reused . | . . . . . . . . . . . . . . . . . . . . Traps Extracted . | . . . . . . . . . . . . . . . . . . . . Installed . | . . . . . . . . . . . . . . . . . . . . Triggered . | . . . . . . . . . . . . . . . . . . . . Most Traps Carried 3 | . . 2 2 . 3 3 2 2 . . . . . . . . . . . Machines | -11 -10 -10 -10 -7 -7 -5 -5 -5 -4 -4 -4 -4 -3 -3 -3 -2 -2 -2 -1 ---------- Run | Yrd Mat Min Sub Rec Scr Fac Was Fac Fac Upp Upp War Pro Res Tes Res Qua Sec Acc Machines Disabled 55 | . . . 2 1 . 4 . 8 11 2 2 3 1 . 7 3 8 1 2 Max in Single Turn 4 | . . . 1 1 . 1 . 1 4 1 1 1 1 . 2 3 1 1 1 Garrison Access 2 | . . . . . . . . 1 . . . . . . 1 . . . . Energy Cycler 1 | . . . . . . . . . . . . . . . . . . . 1 Machines Repaired . | . . . . . . . . . . . . . . . . . . . . Machines Dismantled . | . . . . . . . . . . . . . . . . . . . . Machines Sabotaged . | . . . . . . . . . . . . . . . . . . . . Overloaded Fab Kills . | . . . . . . . . . . . . . . . . . . . . Hacking | -11 -10 -10 -10 -7 -7 -5 -5 -5 -4 -4 -4 -4 -3 -3 -3 -2 -2 -2 -1 --------- Run | Yrd Mat Min Sub Rec Scr Fac Was Fac Fac Upp Upp War Pro Res Tes Res Qua Sec Acc Machines Accessed 31 | . . . 2 . 3 5 . 2 3 2 . 4 . 1 4 1 2 . 2 Terminals 14 | . . . . . . 3 . 1 2 . . . . . 3 1 2 . 2 Fabricators . | . . . . . . . . . . . . . . . . . . . . Repair Stations . | . . . . . . . . . . . . . . . . . . . . Recycling Units 2 | . . . . . . 2 . . . . . . . . . . . . . Scanalyzers . | . . . . . . . . . . . . . . . . . . . . Garrison Access 4 | . . . . . . . . 1 1 . . . . 1 1 . . . . Total Hacks 56 | . . . 6 . 9 11 . 3 4 2 . 6 . 1 6 3 3 . 2 Successful 34 | . . . 6 . 9 1 . 2 2 2 . 6 . . 4 . 2 . . Failed 22 | . . . . . . 10 . 1 2 . . . . 1 2 3 1 . 2 Catastrophic 2 | . . . . . . 2 . . . . . . . . . . . . . Database Lockouts . | . . . . . . . . . . . . . . . . . . . . Manual 10 | . . . . . . 6 . . 1 . . . 1 . . . 1 . 1 Terminals 22 | . . . . . . 7 . 2 2 . . . . . 3 3 3 . 2 Fabricators . | . . . . . . . . . . . . . . . . . . . . Repair Stations . | . . . . . . . . . . . . . . . . . . . . Recycling Units 4 | . . . . . . 4 . . . . . . . . . . . . . Scanalyzers . | . . . . . . . . . . . . . . . . . . . . Garrison Access 7 | . . . . . . . . 1 2 . . . . 1 3 . . . . Terminal Hacks 31 | . . . 6 . 9 . . 1 2 2 . 6 . . 3 . 2 . . Record 14 | . . . 5 . 4 . . . . . . 5 . . . . . . . Part Schematic 1 | . . . . . . . . . . . . . . . 1 . . . . Robot Analysis 4 | . . . . . 4 . . . . . . . . . . . . . . Open Door 5 | . . . . . 1 . . . . 2 . 1 . . 1 . . . . Branch Access Points 1 | . . . . . . . . . 1 . . . . . . . . . . Terminal Index 1 | . . . . . . . . 1 . . . . . . . . . . . Recycling Unit Index 1 | . . . . . . . . . . . . . . . 1 . . . . Alert Level 3 | . . . . . . . . . 1 . . . . . . . 2 . . Proto ID Catalog 1 | . . . 1 . . . . . . . . . . . . . . . . Fabricator Hacks . | . . . . . . . . . . . . . . . . . . . . Repair Station Hacks . | . . . . . . . . . . . . . . . . . . . . Recycling Unit Hacks . | . . . . . . . . . . . . . . . . . . . . Scanalyzer . | . . . . . . . . . . . . . . . . . . . . Garrison Access Hacks 2 | . . . . . . . . 1 . . . . . . 1 . . . . Seal Access 2 | . . . . . . . . 1 . . . . . . 1 . . . . Unauthorized Hacks 1 | . . . . . . 1 . . . . . . . . . . . . . Terminals . | . . . . . . . . . . . . . . . . . . . . Fabricators . | . . . . . . . . . . . . . . . . . . . . Repair Stations . | . . . . . . . . . . . . . . . . . . . . Recycling Units 1 | . . . . . . 1 . . . . . . . . . . . . . Scrapoids 1 | . . . . . . 1 . . . . . . . . . . . . . Scanalyzers . | . . . . . . . . . . . . . . . . . . . . Garrison Access . | . . . . . . . . . . . . . . . . . . . . Data Cores Recovered 2 | . . . . . . 1 . . . . . . . . . 1 . . . Used 1 | . . . . . . 1 . . . . . . . . . . . . . Hacking Detections 12 | . . . . . . 4 . 1 1 . . . . 1 1 1 1 . 2 Full Trace Events 3 | . . . . . . 3 . . . . . . . . . . . . . Feedback Events . | . . . . . . . . . . . . . . . . . . . . Feedback Blocked . | . . . . . . . . . . . . . . . . . . . . Robot Schematics Acquired 1 | . . . . . . . . . . . . . . . 1 . . . . Robots Built . | . . . . . . . . . . . . . . . . . . . . Authchips . | . . . . . . . . . . . . . . . . . . . . Time . | . . . . . . . . . . . . . . . . . . . . Total Robot Build Rating . | . . . . . . . . . . . . . . . . . . . . Part Schematics Acquired 5 | . . . . . . . . . . . . . . . 3 . . 2 . Parts Built . | . . . . . . . . . . . . . . . . . . . . Authchips . | . . . . . . . . . . . . . . . . . . . . Time . | . . . . . . . . . . . . . . . . . . . . Total Part Build Rating . | . . . . . . . . . . . . . . . . . . . . Part Studies Acquired . | . . . . . . . . . . . . . . . . . . . . Parts Repaired . | . . . . . . . . . . . . . . . . . . . . Time . | . . . . . . . . . . . . . . . . . . . . Parts Recycled . | . . . . . . . . . . . . . . . . . . . . Recycled Matter . | . . . . . . . . . . . . . . . . . . . . Retrieved Matter . | . . . . . . . . . . . . . . . . . . . . Retrieved Components . | . . . . . . . . . . . . . . . . . . . . Parts Scanalyzed . | . . . . . . . . . . . . . . . . . . . . Part Schematics Acquired . | . . . . . . . . . . . . . . . . . . . . Parts Damaged . | . . . . . . . . . . . . . . . . . . . . Bothacking | -11 -10 -10 -10 -7 -7 -5 -5 -5 -4 -4 -4 -4 -3 -3 -3 -2 -2 -2 -1 ------------ Run | Yrd Mat Min Sub Rec Scr Fac Was Fac Fac Upp Upp War Pro Res Tes Res Qua Sec Acc Used RIF Installer . | . . . . . . . . . . . . . . . . . . . . Robots Hacked 2 | . . . . . . 1 . . . . . 1 . . . . . . . Non-combat . | . . . . . . . . . . . . . . . . . . . . Combat . | . . . . . . . . . . . . . . . . . . . . Robot Hacks Applied . | . . . . . . . . . . . . . . . . . . . . Manual 2 | . . . . . . 1 . . . . . 1 . . . . . . . Relay Couplers Released 1 | . . . . . . . . . . . . . . . 1 . . . . Machine Destruction 1 | . . . . . . . . . . . . . . . 1 . . . . Fabnet Peak Effective % . | . . . . . . . . . . . . . . . . . . . . Robots Rewired 4 | . . . . 4 . . . . . . . . . . . . . . . Allies Hacked 6 | . . . . . . 3 . 1 2 . . . . . . . . . . Hacks Repelled 3 | . . . . . . 1 . 2 . . . . . . . . . . . Allies | -11 -10 -10 -10 -7 -7 -5 -5 -5 -4 -4 -4 -4 -3 -3 -3 -2 -2 -2 -1 -------- Run | Yrd Mat Min Sub Rec Scr Fac Was Fac Fac Upp Upp War Pro Res Tes Res Qua Sec Acc Total Allies 25 | . . 3 . 4 1 6 1 5 . 3 . 1 . . . . 1 . . Largest Group 7 | . . 3 2 4 3 6 2 7 . 3 . 1 . . . . 1 . . Highest-Rated Group 360 | . . 76 49 116 149 310 125 360 . 138 . 36 . . . . 120 . . Highest-Rated Ally 120 | . . 31 31 40 75 75 75 75 . 46 . 36 . . . . 120 . . Initial UFD Resources 50 | . . . . . . 39 36 36 40 40 40 40 44 44 44 48 48 48 50 Total Orders 12 | . . . . . 2 2 4 4 . . . . . . . . . . . STAY 7 | . . . . . 1 1 3 2 . . . . . . . . . . . ROAM 1 | . . . . . . 1 . . . . . . . . . . . . . FOLLOW 4 | . . . . . 1 . 1 2 . . . . . . . . . . . Ally Attacks 360 | . . 5 7 11 . 149 . 163 25 . . . . . . . . . . Total Damage 11124 | . . 80 140 636 . 4296 . 4774 1198 . . . . . . . . . . Kills 74 | . . 3 2 9 . 29 . 27 4 . . . . . . . . . . Allies Corrupted 3 | . . . . . . . . . 3 . . . . . . . . . . Allies Melted . | . . . . . . . . . . . . . . . . . . . . Borg Created 18 | . . . . . . 7 . 6 5 . . . . . . . . . . Largest Collective 4 | . . . . . . 3 . 4 3 . . . . . . . . . . Intel | -11 -10 -10 -10 -7 -7 -5 -5 -5 -4 -4 -4 -4 -3 -3 -3 -2 -2 -2 -1 ------- Run | Yrd Mat Min Sub Rec Scr Fac Was Fac Fac Upp Upp War Pro Res Tes Res Qua Sec Acc Active Infowar (turns) 13954 | . . . 2052 . . 1436 1357 1576 838 673 540 1460 428 291 1326 448 1267 . 262 Optics 5408 | . . . 650 . . 1436 1357 1576 127 . . . . . . . . . 262 Sensors 6583 | . . . . . . . . . 802 673 540 1460 . 67 1326 448 1267 . . IFF 652 | . . . . . . . . . . . . . 428 224 . . . . . Seismic 2773 | . . . 1402 . . 578 793 . . . . . . . . . . . . Jamming 3859 | . . . . . . 883 1338 1575 63 . . . . . . . . . . ECM 1 | . . . . . . . . 1 . . . . . . . . . . . Robot Analysis Total 4 | . . . . . 4 . . . . . . . . . . . . . . Derelict Logs Recovered 11 | . . 1 2 . 5 . . . . 1 2 . . . . . . . . Drone Launches . | . . . . . . . . . . . . . . . . . . . . Drone Recoveries . | . . . . . . . . . . . . . . . . . . . . Exploration | -11 -10 -10 -10 -7 -7 -5 -5 -5 -4 -4 -4 -4 -3 -3 -3 -2 -2 -2 -1 ------------- Run | Yrd Mat Min Sub Rec Scr Fac Was Fac Fac Upp Upp War Pro Res Tes Res Qua Sec Acc Turns Passed 24062 | 77 187 443 3409 1071 5225 1464 1357 1576 842 800 619 1926 1109 298 1360 448 1426 140 285 Spaces Moved 13075 | 42 106 234 1663 576 2446 616 511 920 634 704 444 846 437 174 719 216 839 469 479 Core 412 | 5 . . . . . . . . . . . . . . . . 17 . 390 Treads 2868 | 37 106 234 1190 . . 19 186 . . . . 539 437 19 . . 96 . 5 Legs 1726 | . . . . . . . . . . . . . . 155 719 216 634 . 2 Wheels 7426 | . . . 473 576 2446 597 325 920 634 704 444 307 . . . . . . . Hover . | . . . . . . . . . . . . . . . . . . . . Flight 407 | . . . . . . . . . . . . . . . . . 92 233 82 Fastest Speed 14 | 50 160 160 115 165 165 145 175 110 90 90 90 100 246 113 115 184 50 14 32 Average Speed 166 | 146 160 160 191 167 210 178 227 146 109 97 106 209 246 127 145 184 131 29 48 Slowest Speed 915 | 160 160 160 295 295 280 320 320 175 110 100 130 330 250 246 186 184 915 142 160 Overloaded Moves 119 | . . . . . . . . . . . . . . . . . . 57 62 Propulsion Burnouts . | . . . . . . . . . . . . . . . . . . . . Robots Hopped 15 | . . . . . . . . 1 . . . . . . . . . 13 1 Potential Cave-ins 7 | . . . . . . . . . . . . . . . . . 7 . . Cave-ins Triggered . | . . . . . . . . . . . . . . . . . . . . Microwarps 26 | . . . . . . . . . . . . . . . . . . 26 . Exploration Rate (%) 48 | 3 26 56 93 92 84 19 95 27 15 65 59 85 62 8 73 7 67 23 20 Regions Visited 19 Branch Regions 11 Pre-discovered Areas 5 | . . 1 1 . 1 . . . . . . 2 . . . . . . . Known Exits Taken 9 | . . . . . . . . 1 1 . 1 1 1 1 1 1 . 1 . Unknown Exits Taken 8 | 1 1 1 1 1 1 . . . . 1 . . . . . . 1 . . Scrap Searched 26 | . . 1 13 . 7 . . . . . 1 . 4 . . . . . . Spaces Dug 152 | . . . 2 . . . . 3 2 . . . 1 4 37 56 2 45 . Terrain Destroyed 1040 | . . . 2 2 . 21 29 20 162 37 130 54 120 5 199 75 120 45 19 Melee 15 | . . . . . . . . 3 2 . . . 1 4 5 . . . . Projectile 133 | . . . 2 2 . . . . 4 8 38 4 3 1 34 1 36 . . AOE 892 | . . . . . . 21 29 17 156 29 92 50 116 . 160 74 84 45 19 Terrain Rammed . | . . . . . . . . . . . . . . . . . . . . Walls Destroyed . | . . . . . . . . . . . . . . . . . . . . Machines Disabled . | . . . . . . . . . . . . . . . . . . . . Actions | -11 -10 -10 -10 -7 -7 -5 -5 -5 -4 -4 -4 -4 -3 -3 -3 -2 -2 -2 -1 --------- Run | Yrd Mat Min Sub Rec Scr Fac Was Fac Fac Upp Upp War Pro Res Tes Res Qua Sec Acc Total 14884 | 51 113 302 1777 641 2526 938 702 1092 729 770 507 965 469 227 942 252 1065 291 525 Wait 686 | . . 63 . 6 19 223 164 21 11 17 3 19 . 12 48 4 52 2 22 Move 12821 | 41 105 233 1662 575 2445 616 510 917 633 703 443 845 436 173 718 215 838 236 477 Hop 12 | . . . . . . . . 1 . . . . . . . . . 10 1 Pick Up 196 | 2 1 5 35 8 23 19 5 21 11 5 2 21 6 3 11 3 11 . 4 Fast Attach 129 | 6 1 . 3 . 1 7 4 10 3 . 3 7 4 9 26 1 31 6 7 Attach 107 | . . . 6 3 1 9 1 5 7 7 4 16 3 4 5 7 17 6 6 Detach 41 | . . . . . . 2 . 4 2 4 1 5 3 2 4 2 5 5 2 Swap 78 | . . . 4 . 2 10 2 11 6 1 7 7 1 4 12 1 10 . . Drop 235 | . . . 12 1 34 19 8 29 13 2 8 15 9 6 35 2 29 11 2 Fire 353 | 2 6 . 55 22 1 5 3 6 17 10 31 30 5 9 68 9 69 2 3 Melee 120 | . . . . . . 20 . 28 17 21 5 . 2 5 15 3 3 1 . Ram 1 | . . . . . . . . . . . . . . . . . . . 1 Kick . | . . . . . . . . . . . . . . . . . . . . Crush 2 | . . 1 . . . 1 . . . . . . . . . . . . . Escape Stasis 47 | . . . . . . . . 30 . . . . . . . 5 . 12 . Rewire 37 | . . . . 26 . . 5 3 3 . . . . . . . . . . Trap . | . . . . . . . . . . . . . . . . . . . . Miscellaneous 19 | . . . . . . 7 . 6 6 . . . . . . . . . . Route ------- -11/Scrapyard -10/Materials -10/Mines (discovered 3 exits: [*Mat x2] / *Sub) -10/Subcaves (discovered 3 exits: [*Mat x2] / *Rec) -7/Recycling (discovered 2 exits: *Fac / *Scr) -7/Scraptown -5/Factory (discovered 5 exits: Fac x4 / Ext) -5/Waste -5/Factory (discovered 2 exits: *Fac x2) -4/Factory (discovered 2 exits: *Upp x2) -4/Upper Caves -4/Upper Caves (discovered 2 exits: *Res / *War) -4/Warlord -3/Proximity Caves -3/Research -3/Testing -2/Research (discovered 2 exits: Acc / *Qua) -2/Quarantine (discovered 3 exits: *Acc / *Sec / [*Frg]) -2/Section 7 -1/Access History --------- Turn | Location | Event 4 | -11/Scrapyard | Discovered new exit (range 14) 78 | -11/Scrapyard | Entered Materials 229 | -10/Materials | Discovered new exit (range 16) 265 | -10/Materials | Entered Mines 268 | -10/Mines | Received a Mining Laser from a helpful Derelict 312 | -10/Mines | Build established: Mutant 392 | -10/Mines | Discovered new exit (range 6) 462 | -10/Mines | Discovered new exit (range 11) 612 | -10/Mines | Learned location of Mines (-9) 647 | -10/Mines | Found a hidden stash of uninstalled traps 676 | -10/Mines | Discovered new exit (range 6) 708 | -10/Mines | Entered Subcaves 708 | -10/Subcaves | Accompanied by 2 allies 713 | -10/Subcaves | Led the pair of lost Derelicts to an unsafe place 750 | -10/Subcaves | Learned location of 1 exit from Materials 763 | -10/Subcaves | Shifting Twisted Machinery released Sub. Optics 819 | -10/Subcaves | Visited Clippyterm 824 | -10/Subcaves | Learned location of Section 7 (-2) 824 | -10/Subcaves | Learned 40 Factory zone layouts 1025 | -10/Subcaves | Shifting Twisted Machinery released Hvy. Battle Rifle 1055 | -10/Subcaves | Shifting Twisted Machinery released Sub. Optics 1165 | -10/Subcaves | Disturbed a concealed Subdweller 1166 | -10/Subcaves | Disturbed a concealed Subdweller 1514 | -10/Subcaves | Discovered new exit (range 15) 1534 | -10/Subcaves | Learned 4 Materials zone layouts 1558 | -10/Subcaves | Discovered new exit (range 12) 2073 | -10/Subcaves | Shifting Twisted Machinery released Shrapnel Trap 2107 | -10/Subcaves | A swath of the cavern ceiling suddenly collapsed 2464 | -10/Subcaves | Disturbed a concealed Subdweller 2787 | -10/Subcaves | Shifting Twisted Machinery released Sub. Machine Gun 2861 | -10/Subcaves | Visited 4L-MR0's lab 2917 | -10/Subcaves | Found Prototype Special Melee Weapon 2930 | -10/Subcaves | Found Powered Cannon 3026 | -10/Subcaves | A swath of the cavern ceiling suddenly collapsed 3162 | -10/Subcaves | Build established: Hauler-Mutant 3910 | -10/Subcaves | Discovered new exit (range 12) 4117 | -10/Subcaves | Entered Recycling 4425 | -7/Recycling | Core integrity fell below 50% 4453 | -7/Recycling | Core integrity fell below 20% 4939 | -7/Recycling | Discovered new exit (range 15) 5139 | -7/Recycling | Scanned before Scraplab entrance 5165 | -7/Recycling | Entered Scraplab 5178 | -7/Recycling | Discovered new exit (range 3) 5188 | -7/Recycling | Entered Scraptown 5188 | -7/Scraptown | Accompanied by 2 allies 5318 | -7/Scraptown | Visited UFD Registry 5318 | -7/Scraptown | Registered with UFD as "Scrapunit" 5419 | -7/Scraptown | Visited Sword Containment 5449 | -7/Scraptown | Visited Science Guys 5477 | -7/Scraptown | Visited Research Penetration Think Tank 5501 | -7/Scraptown | Visited Abandonware Association 5516 | -7/Scraptown | Visited Botcube Research 5543 | -7/Scraptown | Visited Analyses Database 5569 | -7/Scraptown | Visited Science Testing Area 5597 | -7/Scraptown | Visited Scrapoid Pod Storage 5779 | -7/Scraptown | Learned abandonware demo "REPAIR.EXE" 5779 | -7/Scraptown | Learned abandonware demo "SHUTEYE.EXE" 6365 | -7/Scraptown | Visited Junk Repository 6550 | -7/Scraptown | Scanned Subdweller tech in exchange for log data 6555 | -7/Scraptown | Learned Research interactive machine intel 6558 | -7/Scraptown | Learned location of Warlord (-4) 6561 | -7/Scraptown | Learned Research stockpile data 6564 | -7/Scraptown | Learned 12 Research zone layouts 6567 | -7/Scraptown | Learned location of 1 exit from Proximity Caves 7327 | -7/Scraptown | Visited Bundlers 7776 | -7/Scraptown | Found Botcube 7937 | -7/Scraptown | Visited Supply Room 9046 | -7/Scraptown | Found Scrap Suit 9049 | -7/Scraptown | Found Scrap Suit 9278 | -7/Scraptown | Botcube activated 9300 | -7/Scraptown | Botcube completed mutation into treaded form, armed with 1 cannon. 9592 | -7/Scraptown | Found Scrapoid Pod 9753 | -7/Scraptown | Found Prototype Slashing Weapon 9753 | -7/Scraptown | Identified Companion Sword 10073 | -7/Scraptown | Attached CPS modules to *meltdown. 10400 | -7/Scraptown | Discovered new exit (range 3) 10413 | -7/Scraptown | Entered Factory 10413 | -5/Factory | Accompanied by 3 allies 10413 | -5/Factory | Evolved 10 slots: Propulsion x2, Utility x4, Weapon x4 10414 | -5/Factory | Identified exit to Extension 10414 | -5/Factory | Identified exit to Factory 10425 | -5/Factory | Identified 1B-0RG's Assimilator 10431 | -5/Factory | Assimilating Grenadier 4a into Collective. 10434 | -5/Factory | Assimilating Angel 4a into Collective. 10908 | -5/Factory | Assimilating Sage 6a into Collective. 11116 | -5/Factory | Scrapoids reinforcements arrived? 11121 | -5/Factory | Assimilating 05F03-D into Collective. 11125 | -5/Factory | Assimilating 05F05-D into Collective. 11313 | -5/Factory | First assault squad dispatched 11409 | -5/Factory | Found Scrap Suit 11625 | -5/Factory | Build established: Mutant 11806 | -5/Factory | Assimilating Warrior 6a into Collective. 11809 | -5/Factory | Assimilating Veteran 6a into Collective. 11877 | -5/Factory | Sucked down chute 11877 | -5/Factory | Entered Waste 11877 | -5/Waste | The area was eerily silent 11877 | -5/Waste | Met up with 1 ally sucked down the chute earlier 11897 | -5/Waste | 1 allies followed down the chute 12027 | -5/Waste | 3 allies followed down the chute 12358 | -5/Waste | Found Prototype Device 12358 | -5/Waste | Identified Exp. Actuator Array 12547 | -5/Waste | A Compactor rumbled back to life 12549 | -5/Waste | Spotted C-40 Crusher 12551 | -5/Waste | Destroyed C-40 Crusher 12675 | -5/Waste | Discovered new exit (range 14) 12741 | -5/Waste | Found Broken Gamma Bomb Array 13234 | -5/Waste | Entered Factory 13234 | -5/Factory | Accompanied by 5 allies 13387 | -5/Factory | Assimilating Conveyor 6a into Collective. 13834 | -5/Factory | Discovered exit to Factory (range 17) 14130 | -5/Factory | Assimilating Slayer 6a into Collective. 14142 | -5/Factory | Scrapoid Pod released 05F11-D (x5) 14280 | -5/Factory | Found Scrap Suit 14303 | -5/Factory | Lost 3 allies 14315 | -5/Factory | Cargo convoy interrupted 14369 | -5/Factory | Lost 3 allies 14376 | -5/Factory | Found Prototype Device 14377 | -5/Factory | Identified Exp. ECM Suite 14387 | -5/Factory | Found Botcube 14406 | -5/Factory | Found Prototype Device 14411 | -5/Factory | Identified Exp. EM Shield 14420 | -5/Factory | Found Prototype Processor 14599 | -5/Factory | Assimilating Conveyor 6b into Collective. 14642 | -5/Factory | Assimilating Sage 6b into Collective. 14645 | -5/Factory | Assimilating Sage 6c into Collective. 14671 | -5/Factory | Assimilating Slayer 6b into Collective. 14734 | -5/Factory | First assault squad dispatched 14770 | -5/Factory | Discovered exit to Factory (range 22) 14810 | -5/Factory | Entered another Factory area 14810 | -4/Factory | Accompanied by 1 ally 14810 | -4/Factory | Evolved 2 slots: Utility x1, Weapon x1 14955 | -4/Factory | Identified exit to Upper Caves 15019 | -4/Factory | Assimilating Warrior 7a into Collective. 15023 | -4/Factory | Assimilating Veteran 7a into Collective. 15028 | -4/Factory | Assimilating Veteran 7b into Collective. 15243 | -4/Factory | Build established: Scavenger-Scrapper 15419 | -4/Factory | Lost 3 allies 15493 | -4/Factory | Assimilating Conveyor 7a into Collective. 15513 | -4/Factory | Assimilating Sage 7a into Collective. 15543 | -4/Factory | Identified Exp. Signal Interpreter 15652 | -4/Factory | Entered Upper Caves 15653 | -4/Upper Caves | Encountered a Warlord checkpoint 15656 | -4/Upper Caves | Learned Research terminal intel 15818 | -4/Upper Caves | Build established: Scrapper 16105 | -4/Upper Caves | Attracted the attention of an 0b10 checkpoint 16273 | -4/Upper Caves | Build established: Scavenger-Scrapper 16281 | -4/Upper Caves | Entered an active Warlord outpost 16286 | -4/Upper Caves | A Commander dispatched an escort 16302 | -4/Upper Caves | Destroyed YP-9H5(g) 16434 | -4/Upper Caves | Discovered new exit (range 7) 16452 | -4/Upper Caves | Entered another Upper Caves area 16452 | -4/Upper Caves | Accompanied by 3 allies 16453 | -4/Upper Caves | Commander's escort returned to base 16453 | -4/Upper Caves | Commander's escort returned to base 16453 | -4/Upper Caves | Commander's escort returned to base 16457 | -4/Upper Caves | Discovered new exit (range 5) 16525 | -4/Upper Caves | Destroyed 3K-54G(g) 16722 | -4/Upper Caves | Attracted the attention of an 0b10 checkpoint 16746 | -4/Upper Caves | Learned 4 Research zone layouts 16829 | -4/Upper Caves | Lost 6 parts (2u4w) 16870 | -4/Upper Caves | Encountered a Warlord checkpoint 16875 | -4/Upper Caves | Learned Research garrison access intel 17063 | -4/Upper Caves | Discovered new exit (range 4) 17070 | -4/Upper Caves | Identified exit to Warlord 17071 | -4/Upper Caves | Entered Warlord 17168 | -4/Warlord | System corruption cleaned by Quarantine Array 17212 | -4/Warlord | Build established: Scavenger-Tank 17826 | -4/Warlord | Received a Watcher feed algorithm from an ecstatic Tinkerer 17874 | -4/Warlord | Build established: Scavenger-Executioner 17914 | -4/Warlord | Learned location of Armory (-3) 17917 | -4/Warlord | Learned Research scanalyzer intel 18039 | -4/Warlord | Visited the Vortex Lab 18050 | -4/Warlord | Found Prototype Energy Gun 18050 | -4/Warlord | Identified Vortex Shotgun 18051 | -4/Warlord | Warlord's base attacked by MAIN.C 18053 | -4/Warlord | Found Vortex Shotgun 18060 | -4/Warlord | Found Prototype Energy Gun 18060 | -4/Warlord | Identified Vortex Rifle 18063 | -4/Warlord | Found Vortex Rifle 18068 | -4/Warlord | Found Prototype Energy Cannon 18069 | -4/Warlord | Identified Vortex Driver 18073 | -4/Warlord | Found Vortex Driver 18163 | -4/Warlord | Found Prototype Processor 18181 | -4/Warlord | Found Prototype Reactor 18290 | -4/Warlord | P-80 Master assimilated allied AF-6DD(Y) 18401 | -4/Warlord | Warlord forces counterattacked 18455 | -4/Warlord | Spotted Striker 18456 | -4/Warlord | Spotted Striker 18467 | -4/Warlord | Spotted Striker 18497 | -4/Warlord | Spotted Striker 18509 | -4/Warlord | Destroyed Striker 18633 | -4/Warlord | Lost 35 allies 18634 | -4/Warlord | Destroyed Executioner 18655 | -4/Warlord | Destroyed 13 combat bots 18726 | -4/Warlord | Warlord base infiltrated, sounded retreat 18928 | -4/Warlord | Rebuked by Warlord 18933 | -4/Warlord | Discovered new exit (range 9) 18948 | -4/Warlord | Identified exit to Proximity Caves 18956 | -4/Warlord | Spotted Executioner 18997 | -4/Warlord | Entered Proximity Caves 18998 | -3/Proximity Caves | Identified exit to Research 19030 | -3/Proximity Caves | Lost 16 allies 19339 | -3/Proximity Caves | Build established: Scavenger-Tank 19553 | -3/Proximity Caves | Acquired the password to a Derelict Tinkerer's latest research 19568 | -3/Proximity Caves | Found Prototype Special Weapon 20029 | -3/Proximity Caves | Found Alien Artifact 20029 | -3/Proximity Caves | Identified Core Expander 20029 | -3/Proximity Caves | Installed Core Expander, added new Utility slot 20106 | -3/Proximity Caves | Entered Research 20106 | -3/Research | Evolved 2 slots: Propulsion x2 20107 | -3/Research | Identified exit to Testing 20109 | -3/Research | Loaded intel: 42 interactive machine locations 20110 | -3/Research | Loaded intel: 20 terminal locations 20111 | -3/Research | Loaded intel: 6 scanalyzer locations 20112 | -3/Research | Loaded intel: 4 garrison access locations 20404 | -3/Research | Entered Testing 20474 | -3/Testing | Identified Exp. Armor Integrity Analyzer 20688 | -3/Testing | Found Prototype Hackware 20688 | -3/Testing | Identified Exp. System Shield 20709 | -3/Testing | Build established: Scavenger-Executioner 20761 | -3/Testing | Found Prototype Protection 20761 | -3/Testing | Identified Med. Regenerative Plating 20768 | -3/Testing | Found Prototype Protection 20838 | -3/Testing | Found Prototype Hackware 20838 | -3/Testing | Identified System Mapper 21013 | -3/Testing | Found Prototype Device 21013 | -3/Testing | Identified Exp. Thermal Shield 21076 | -3/Testing | Found Gamma Bomb Array 21223 | -3/Testing | Scanned by Researcher 21264 | -3/Testing | Destroyed 8 combat bots 21363 | -3/Testing | Discovered new exit (range 12) 21654 | -3/Testing | First assault squad dispatched 21762 | -3/Testing | Identified exit to Research 21764 | -3/Testing | Entered Research 21764 | -2/Research | Evolved 2 slots: Power x1, Propulsion x1 21765 | -2/Research | Identified exit to Access 22022 | -2/Research | Spotted B-90 Cyclops 22035 | -2/Research | Destroyed B-90 Cyclops 22121 | -2/Research | Spotted B-90 Cyclops 22131 | -2/Research | Destroyed B-90 Cyclops 22138 | -2/Research | Discovered new exit (range 15) 22210 | -2/Research | Identified exit to Quarantine 22212 | -2/Research | Entered Quarantine 22379 | -2/Quarantine | Discovered exit to Access (range 15) 22400 | -2/Quarantine | Identified Molecular Deconstructor 22401 | -2/Quarantine | Found Alien Impact Weapon 22598 | -2/Quarantine | Build established: Hacker-Executioner 22830 | -2/Quarantine | Lost 4 parts (1n3w) 23285 | -2/Quarantine | Identified SHELL Armor 23295 | -2/Quarantine | Identified Vortex Chain Reactor 23312 | -2/Quarantine | Released all parts (8) 23329 | -2/Quarantine | Identified Core Stripper 23338 | -2/Quarantine | Lost 21 parts (3p6n3u9w) 23439 | -2/Quarantine | Spotted Fortress 23458 | -2/Quarantine | Destroyed Fortress 23463 | -2/Quarantine | Found Unknown Protection 23463 | -2/Quarantine | Identified Hvy. Insulated Plating 23466 | -2/Quarantine | Botcube activated 23484 | -2/Quarantine | Botcube completed mutation into treaded form, armed with 2 cannons. 23568 | -2/Quarantine | Build established: Mutant 23628 | -2/Quarantine | Discovered new exit (range 6) 23628 | -2/Quarantine | Discovered new exit (range 7) 23638 | -2/Quarantine | Entered Section 7 23638 | -2/Section 7 | Spotted B-90 Cyclops 23644 | -2/Section 7 | Spotted S7 Guard 23648 | -2/Section 7 | Found Alien Artifact 23648 | -2/Section 7 | Identified Core Regenerator 23648 | -2/Section 7 | Used Core Regenerator, restored core integrity (+362) 23676 | -2/Section 7 | Scanned by Researcher 23697 | -2/Section 7 | Found Alien Artifact 23697 | -2/Section 7 | Identified Microwarp Drive 23772 | -2/Section 7 | Core integrity fell below 50% 23773 | -2/Section 7 | Discovered exit to Access (range 15) 23778 | -2/Section 7 | Entered Access 23778 | -1/Access | Evolved 2 slots: Propulsion x2 23805 | -1/Access | Lost 5 parts (1p3n1u) 23938 | -1/Access | Energy Cycler disabled 23987 | -1/Access | Spotted B-99 Colossus 24023 | -1/Access | Spotted B-99 Colossus 24024 | -1/Access | Spotted B-99 Colossus 24028 | -1/Access | Search patrols dispatched 24047 | -1/Access | Core integrity fell below 50% 24057 | -1/Access | Core integrity fell below 20% 24063 | -1/Access | Destroyed by S-43 Plague with Heavy Machine Gun Last Messages --------------- 24045_ Slug penetrates Sealed Heavy Doors. 24048_ S-43 Plague destroyed. 24048_ Penetrated by Slug. 24048_ Impulse Thruster Array destroyed. 24049_ Penetrated by Slug. 24049_ Slug penetrates S-43 Plague. 24049_ Slug penetrates Sealed Heavy Doors. 24049_ Slammed into S-43 Plague. 24052_ Slug penetrates Sealed Heavy Doors. 24052_ Penetrated by Slug. 24052_ Slug penetrates Sealed Heavy Doors. 24052_ Penetrated by Slug. 24052_ S-43 Plague destroyed. 24055_ Slug penetrates Sealed Heavy Doors. 24059_ Penetrated by Slug. 24059_ Slug penetrates Sealed Heavy Doors. 24059_ Penetrated by Slug. 24059_ Slug penetrates Sealed Heavy Doors. 24059_ Penetrated by Slug. 24062_ Slug penetrates Sealed Heavy Doors. Map ----- +----------------------------------------------------+ | ?????????????????????????????????????????????????? | | ?????????????????????????????????????????????????? | | ?????????????????????????????????????????????????? | | ?????????????????????????????????????????????????? | | ?????????????????????????????????????????????????? | | ?????????????????????????????????????????????????? | | ?????????????????????????????????????????????????? | | ?????????????????????????????????????????????????? | | ?????????????????????????????????????????????????? | | ?????????????????????????????????????????????????? | | ?????????????????????????????????????????????????? | | ?????????????????????????????????????????????????? | | ????#########????????????????????????????????????? | | ? #????????????????????????????????????? | | #????????????????????????????????????? | | = ! #????????????????????????????????????? | | #????????????????????????????????????? | | "" #????????????????????????????????????? | | "" #????????????????????????????????????? | | """""" #????????????????????????????????????? | | """""" #????????????????????????????????????? | | ] "" #????????????????????????????????????? | | "" #???#########????????????????????????? | | ?? ! ???## s%""???????????????????????? | | ???? ???#; % BB % ""??????????????????????? | | ######+####"##### BB% s@"??????????????????????? | | w == % s%="""??????????????????????? | | ^% =%"????????????????????????? | | ^ % "????????????????????????? | | ^ "????????????????????????? | | ######+########## "????????????????????????? | | ????????????????# "????????????????????????? | | ????????????????# "????????????????????????? | | ????????????????#########????????????????????????? | | ?????????????????????????????????????????????????? | | ?????????????????????????????????????????????????? | | ?????????????????????????????????????????????????? | | ?????????????????????????????????????????????????? | | ?????????????????????????????????????????????????? | | ?????????????????????????????????????????????????? | | ?????????????????????????????????????????????????? | | ?????????????????????????????????????????????????? | | ?????????????????????????????????????????????????? | | ?????????????????????????????????????????????????? | | ?????????????????????????????????????????????????? | | ?????????????????????????????????????????????????? | | ?????????????????????????????????????????????????? | | ?????????????????????????????????????????????????? | | ?????????????????????????????????????????????????? | | ?????????????????????????????????????????????????? | +----------------------------------------------------+ Best States ------------- Heat Dissipation 163 Energy Generation 55 Energy Capacity 1050 Matter Stores 570 Matter Capacity 700 Sight Range 22 Robot Scan Range 18 Terrain Scan Density 10 Jamming Range 12 Corruption Block 14 Armor Coverage 900 Resistance: TH 30 Resistance: EM 75 Weapon Cycling 25 Evasion (%) 75 Targeting Accuracy 5 Core Analysis 6 Recoil Reduction 6 Offensive Hacking 20 Defensive Hacking 16 Item Schematics ----------------- Stealth Drone Bay | -3/Testing | Archive Exp. Target Analyzer | -3/Testing | Archive Lgt. Regenerative Plating | -3/Testing | Hacked Exp. EM Shield | -2/Section 7 | Archive Enh. Armored Heavy Treads | -2/Section 7 | Archive Robot Schematics ------------------ L-61 Swordsman | -3/Testing | Archive Fabricated ------------ Nothing Repaired ---------- Nothing Studied --------- None Alien Tech Used ----------------- Core Expander Core Stripper Core Regenerator Microwarp Drive Achievements -------------- Low-level Research Protector Vwoop! Challenges ------------ None Game ------ Seed DisruptorBehemothDisplacer Manual? 0 Play Time 02:27:19 Cumulative 437.5 hours Start 2026.02.16 @ 18:30:18 End 2026.02.16 @ 21:03:21 Sessions 1 Manual Loads 0 Difficulty Rogue Special Mode None Game No. 391 Rogue 355 Adventurer 36 Explorer 0 Win Type - Total 18 Types 9/0/9/0/0/0/0/0/0/0 Lore% 73 Gallery% 82 Achievement% 66 Wizard Run 0 Options --------- Layout 0 ASCII 0 Keyboard 0 Movement Mouse Keybinds 0 Fullscreen 1 Font 18/SmallcapsGlow Map View 76x50 Zoom Use 0% Tactical HUD 1 Map Filters NONE Filters NONE Steam 1 RUN: 1d33f6f6-3139-41db-afcd-3687367227ee